[Event "WSTCC-65 2024"]
[Site "Krakow"]
[Date "2024.07.06"]
[Round "5.3"]
[White "Moyses Sobrinho, Elias"]
[Black "Irlik, Andrzej"]
[Result "1-0"]
[ECO "A43"]
[WhiteElo "1908"]
[BlackElo "1983"]
[Annotator "NA RC"]
[PlyCount "117"]
[EventDate "2024.07.01"]
[EventType "team-tourn"]
[EventCountry "POL"]
[SourceTitle "playchess.com"]
[Source "ChessBase"]
[SourceQuality "1"]
[TimeControl "40/5400+30:1800+30"]

1. d4 {[%emt 0:00:11]} Nf6 {[%emt 0:00:48]} 2. c4 {[%emt 0:00:09]} c5 {[%emt 0:02:03]} 3. d5 {[%emt 0:01:02]} d6 {[%emt 0:00:45]} 4. Nc3 {[%emt 0:00:11]} g6 {[%emt 0:01:30]} 5. e4 {[%emt 0:00:19]} Bg7 {[%emt 0:00:37]} 6. Nf3 {[%emt 0:00:41]} Nbd7 {[%emt 0:05:39]} 7. Bd3 {[%emt 0:00:37]} O-O {[%emt 0:04:23]} 8. h3 {[%emt 0:00:06]} a6 {[%emt 0:02:44]} 9. O-O {[%emt 0:00:24]} Ne8 {[%emt 0:09:12]} 10. Bf4 {[%emt 0:03:32]} Ne5 {[%emt 0:02:11]} 11. Nxe5 {[%emt 0:00:15]} dxe5 {[%emt 0:00:31]} 12. Be3 {[%emt 0:00:57]} Qc7 {[%emt 0:03:42]} 13. Na4 {[%emt 0:01:48]} b6 {[%emt 0:07:41]} 14. b4 {[%emt 0:00:47]} Bd7 {[%emt 0:00:46]} 15. bxc5 {[%emt 0:00:26]} Bxa4 {[%emt 0:00:37]} 16. Qxa4 {[%emt 0:00:09]} bxc5 {[%emt 0:00:41]} 17. Qa3 {[%emt 0:00:35]} Rc8 {[%emt 0:03:06]} 18. Qxa6 {[%emt 0:00:15]} Nd6 {[%emt 0:01:54]} 19. Rfb1 {[%emt 0:03:27]} f5 {[%emt 0:03:36]} 20. f3 {[%emt 0:00:27]} Ra8 {[%emt 0:12:48]} 21. Qb6 {[%emt 0:00:35]} Qxb6 {[%emt 0:03:58]} 22. Rxb6 {[%emt 0:00:09]} Ra3 {[%emt 0:00:33]} 23. Rb3 {[%emt 0:02:37]} Rfa8 {[%emt 0:00:39]} 24. Rab1 {[%emt 0:00:19]} Rxa2 {[%emt 0:05:10]} 25. Bxc5 {[%emt 0:01:23]} fxe4 {[%emt 0:10:17]} 26. fxe4 {[%emt 0:01:25]} Bh6 {[%emt 0:01:41]} 27. Bf2 {[%emt 0:07:02]} Rd2 {[%emt 0:03:30]} 28. Rb8+ {[%emt 0:03:02]} Rxb8 {[%emt 0:00:46]} 29. Rxb8+ {[%emt 0:00:09]} Kf7 {[%emt 0:02:29]} 30. Rb3 {[%emt 0:00:13]} Rd1+ {[%emt 0:03:07]} 31. Kh2 {[%emt 0:03:04]} Rc1 {[%emt 0:05:39]} 32. c5 {[%emt 0:00:21]} Nc4 {[%emt 0:00:44]} 33. Bxc4 {[%emt 0:05:23]} Rxc4 {[%emt 0:00:03]} 34. c6 {[%emt 0:00:18]} Rc2 {[%emt 0:01:08]} 35. Bg3 {[%emt 0:00:41]} Kf6 {[%emt 0:02:01]} 36. Rf3+ {[%emt 0:00:51]} Bf4 {[%emt 0:00:50]} 37. Bxf4 {[%emt 0:06:11]} exf4 {[%emt 0:00:02]} 38. Rxf4+ {[%emt 0:00:38]} Ke5 {[%emt 0:00:01]} 39. Kg3 {[%emt 0:02:20]} g5 {[%emt 0:00:42]} 40. Rf2 {[%emt 0:00:43]} Rc3+ {[%emt 0:00:44]} 41. Rf3 {[%emt 0:30:17]} Rc2 {[%emt 0:30:30]} 42. Rf5+ {[%emt 0:01:01]} Kxe4 {[%emt 0:00:38]} 43. Rxg5 {[%emt 0:00:13]} h6 {[%emt 0:00:44]} 44. Rh5 {[%emt 0:01:30]} Rc3+ {[%emt 0:00:47]} 45. Kg4 {[%emt 0:01:55]} Rc4 {[%emt 0:00:21]} 46. h4 {[%emt 0:00:33]} Rc3 {[%emt 0:00:35]} 47. g3 {[%emt 0:00:12]} Rc4 {[%emt 0:00:09]} 48. Rxh6 {[%emt 0:04:30]} Kxd5+ {[%emt 0:00:19]} 49. Kf5 {[%emt 0:00:48]} Rc2 {[%emt 0:00:38]} 50. h5 {[%emt 0:02:43]} e6+ {[%emt 0:00:31]} 51. Kg5 {[%emt 0:00:45]} Rxc6 {[%emt 0:00:33]} 52. Rg6 {[%emt 0:00:44]} Rc1 {[%emt 0:00:48]} 53. h6 {[%emt 0:00:46]} Rh1 {[%emt 0:00:10]} 54. Rg8 {[%emt 0:00:59]} e5 {[%emt 0:00:30]} 55. g4 {[%emt 0:00:22]} e4 {[%emt 0:00:38]} 56. Kg6 {[%emt 0:00:17]} Ke5 {[%emt 0:00:49]} 57. h7 {[%emt 0:01:16]} Kf4 {[%emt 0:00:13]} 58. g5 {[%emt 0:00:18]} e3 {[%emt 0:00:25]} 59. h8=Q {[%emt 0:00:20]} 1-0

[Event "WSTCC-65 2024"]
[Site "Krakow"]
[Date "2024.07.06"]
[Round "5.4"]
[White "Roos, Louis"]
[Black "Littlewood, Paul E"]
[Result "1-0"]
[ECO "A05"]
[WhiteElo "2288"]
[BlackElo "2318"]
[Annotator "TA"]
[PlyCount "75"]
[EventDate "2024.07.01"]
[EventType "team-tourn"]
[EventCountry "POL"]
[SourceTitle "playchess.com"]
[Source "ChessBase"]
[SourceQuality "1"]
[TimeControl "40/5400+30:1800+30"]

{[%evp 17,75,0,8,9,14,8,29,27,65,54,62,60,64,59,57,57,48,38,67,62,77,59,92,88,113,97,199,191,193,200,222,205,238,222,242,258,238,227,241,236,378,364,335,280,256,241,486,456,562,558,441,238,598,582,668,655,678,587,791,775]} 1. Nf3 {[%emt 0:00:07]} Nf6 {[%emt 0:00:45]} 2. g3 {[%emt 0:01:24]} g6 {[%emt 0:00:53]} 3. Bg2 {[%emt 0:00:09]} Bg7 {[%emt 0:00:13]} 4. c4 {[%emt 0:00:10]} O-O {[%emt 0:03:23]} 5. O-O {[%emt 0:00:43]} d6 {[%emt 0:00:39]} 6. Nc3 {[%emt 0:00:23]} c6 {[%emt 0:07:13]} 7. Rb1 {[%emt 0:12:20]} a5 {[%emt 0:09:03]} 8. d3 {[%emt 0:03:23]} e5 {[%emt 0:01:01]} 9. a3 {[%emt 0:08:16][%cal Ba2a3,Ba3b4,Bb4b5][%mdl 32]} Re8 {[%emt 0:04:57]} 10. e4 {[%emt 0:01:48]} Nbd7 {[%emt 0:12:49]} 11. h3 {[%emt 0:11:13]} h6 {[%emt 0:05:43]} 12. Be3 {[%emt 0:03:35] White has an edge.} b6 {[%emt 0:10:16]} 13. b4 {[%emt 0:03:18]} axb4 {[%emt 0:00:26]} 14. axb4 {[%emt 0:00:18]} Bb7 {[%emt 0:03:07]} 15. Qd2 {[%emt 0:00:49]} Kh7 {[%emt 0:00:35]} 16. b5 {[%emt 0:00:37]} c5 {[%emt 0:01:35]} 17. Ra1 {[%emt 0:01:28]} Nf8 {[%emt 0:05:00]} 18. Rxa8 {[%emt 0:00:53]} Qxa8 {[%emt 0:00:49]} 19. Qb2 {[%emt 0:02:02]} N6d7 {[%emt 0:01:37] White stays focused until the end.} 20. Ra1 {[%emt 0:00:59]} Qb8 {[%emt 0:00:30]} 21. Qa3 {[%emt 0:01:16] White has more active pieces.} Qc7 {[%emt 0:04:54]} (21... Nf6 $16) 22. Nd5 $18 {[%emt 0:02:16]} Bxd5 {[%emt 0:00:08]} 23. cxd5 {[%emt 0:00:10]} f5 {[%emt 0:01:32]} 24. Qa7 {[%emt 0:04:46]} Qd8 {[%emt 0:00:55]} 25. Ra4 {[%emt 0:07:08]} Qf6 {[%emt 0:02:12]} 26. Qc7 {[%emt 0:01:48]} f4 {[%emt 0:04:27]} 27. Bd2 {[%emt 0:01:18]} fxg3 {[%emt 0:01:16]} 28. fxg3 {[%emt 0:01:30]} Re7 {[%emt 0:03:24]} (28... c4 $142 29. Rxc4 Nc5 30. Qxb6 Nfd7) 29. Ra7 {[%emt 0:08:13]} Rf7 {[%emt 0:02:06]} 30. h4 {[%emt 0:01:26]} Kg8 {[%emt 0:01:10]} 31. Be3 {[%emt 0:02:32] [#] Black must now prevent Nd2.} Nh7 $2 {[%emt 0:03:46]} (31... g5 {might work better.} 32. h5 (32. hxg5 hxg5 33. Nh2 g4 $18) 32... Qe7) 32. Qc8+ {[%emt 0:00:44] Black is weak on the light squares} Nhf8 {[%emt 0:00:55]} 33. Nh2 {[%emt 0:01:37]} Kh7 {[%emt 0:03:15]} 34. Bh3 {[%emt 0:07:33]} (34. Ng4 $142 Qe7 35. Kh2) 34... Qe7 {[%emt 0:00:12]} (34... h5 {is more resistant.}) 35. Kg2 {[%emt 0:02:45] White is clearly winning.} Bf6 {[%emt 0:01:18]} 36. Nf3 {[%emt 0:01:30]} Kg7 {[%emt 0:01:28]} 37. Ra8 {[%emt 0:00:57]} Kh7 {[%emt 0:01:34] [#]} 38. Be6 $1 {[%emt 0:01:28][%mdl 512] Weighted Error Value: White=0.14 (very precise) /Black=0.52.  Mistake:       	White=1     	Black=4      Inaccurate:     	---       	Black=3      OK:         	White=13    	Black=10     Best:        	White=1     	---} 1-0

[Event "WSTCC-65 2024"]
[Site "Krakow"]
[Date "2024.07.06"]
[Round "5.4"]
[White "Krupa, Krzysztof"]
[Black "Ceschia, Ivano"]
[Result "0-1"]
[ECO "B30"]
[WhiteElo "1947"]
[BlackElo "2180"]
[Annotator "RC"]
[PlyCount "92"]
[EventDate "2024.07.01"]
[EventType "team-tourn"]
[EventCountry "POL"]
[SourceTitle "playchess.com"]
[Source "ChessBase"]
[SourceQuality "1"]
[TimeControl "40/5400+30:1800+30"]

1. e4 {[%emt 0:00:04]} c5 {[%emt 0:00:04]} 2. Nf3 {[%emt 0:00:13]} Nc6 {[%emt 0:00:05]} 3. Bb5 {[%emt 0:00:22]} e6 {[%emt 0:00:05]} 4. O-O {[%emt 0:00:08]} Nge7 {[%emt 0:00:05]} 5. Re1 {[%emt 0:01:05]} a6 {[%emt 0:00:07]} 6. Bf1 {[%emt 0:00:13]} g6 {[%emt 0:00:35]} 7. d4 {[%emt 0:01:45]} cxd4 {[%emt 0:00:13]} 8. Nxd4 {[%emt 0:00:03]} Bg7 {[%emt 0:00:16]} 9. Nxc6 {[%emt 0:04:03]} Nxc6 {[%emt 0:02:24]} 10. Nc3 {[%emt 0:00:22]} Qb6 {[%emt 0:39:59]} 11. Qd6 {[%emt 0:29:01]} Qb4 {[%emt 0:12:09]} 12. Qxb4 {[%emt 0:01:54]} Nxb4 {[%emt 0:00:19]} 13. Bd3 {[%emt 0:00:17]} d6 {[%emt 0:02:27]} 14. Bg5 {[%emt 0:10:32]} Bd7 {[%emt 0:02:40]} 15. Rad1 {[%emt 0:02:54]} b5 {[%emt 0:19:30]} 16. a3 {[%emt 0:03:34]} Nc6 {[%emt 0:00:09]} 17. Bf1 {[%emt 0:06:59]} h6 {[%emt 0:01:35]} 18. Bf4 {[%emt 0:02:05]} Be5 {[%emt 0:03:36]} 19. Be3 {[%emt 0:05:19]} g5 {[%emt 0:01:32]} 20. g3 {[%emt 0:02:33]} g4 {[%emt 0:00:23]} 21. Be2 {[%emt 0:02:31]} h5 {[%emt 0:00:25]} 22. Bf4 {[%emt 0:04:55]} Ke7 {[%emt 0:00:55]} 23. Rd2 {[%emt 0:03:16]} Rad8 {[%emt 0:00:16]} 24. Bg5+ {[%emt 0:05:01]} f6 {[%emt 0:00:13]} 25. Be3 {[%emt 0:00:14]} Bc8 {[%emt 0:01:41]} 26. Red1 {[%emt 0:03:09]} Bb7 {[%emt 0:00:33]} 27. h3 {[%emt 0:03:28]} Bxc3 {[%emt 0:04:14]} 28. bxc3 {[%emt 0:00:17]} Ne5 {[%emt 0:00:14]} 29. Bb6 {[%emt 0:02:42]} Rd7 {[%emt 0:00:59]} 30. Rd4 {[%emt 0:00:35]} Rc8 {[%emt 0:00:39]} 31. Ba5 {[%emt 0:00:20]} Nc6 {[%emt 0:00:18]} 32. Bb4 {[%emt 0:02:01]} Nxd4 {[%emt 0:00:12]} 33. Rxd4 {[%emt 0:00:24]} e5 {[%emt 0:00:07]} 34. Rd2 {[%emt 0:00:40]} Bxe4 {[%emt 0:00:10]} 35. hxg4 {[%emt 0:00:11]} hxg4 {[%emt 0:00:48]} 36. Bxg4 {[%emt 0:00:15]} Rh8 {[%emt 0:00:26]} 37. f3 {[%emt 0:00:28]} f5 {[%emt 0:00:05]} 38. fxe4 {[%emt 0:00:49]} fxg4 {[%emt 0:00:05]} 39. a4 {[%emt 0:02:33]} bxa4 {[%emt 0:00:50]} 40. Rd5 {[%emt 0:00:04]} Ke6 {[%emt 0:00:13]} 41. Ra5 {[%emt 0:30:20]} Ra8 {[%emt 0:30:39]} 42. Rxa4 {[%emt 0:00:05]} a5 {[%emt 0:00:22]} 43. Rxa5 {[%emt 0:00:35]} Rxa5 {[%emt 0:00:12]} 44. Bxa5 {[%emt 0:00:10]} Ra7 {[%emt 0:00:05]} 45. Bb4 {[%emt 0:00:39]} Ra2 {[%emt 0:00:08]} 46. Kf1 {[%emt 0:01:14]} Rxc2 0-1

[Event "WSTCC-65 2024"]
[Site "Krakow"]
[Date "2024.07.06"]
[Round "5.4"]
[White "Turecki, Stanislaw"]
[Black "Vieira, Alexandre Letizio"]
[Result "1-0"]
[ECO "B12"]
[WhiteElo "1873"]
[BlackElo "1825"]
[Annotator "NA RC"]
[PlyCount "131"]
[EventDate "2024.07.01"]
[EventType "team-tourn"]
[EventCountry "POL"]
[SourceTitle "playchess.com"]
[Source "ChessBase"]
[SourceQuality "1"]
[TimeControl "40/5400+30:1800+30"]

1. e4 {[%emt 0:00:10]} c6 {[%emt 0:00:05]} 2. d4 {[%emt 0:00:40]} d5 {[%emt 0:00:06]} 3. e5 {[%emt 0:01:46]} c5 {[%emt 0:00:05]} 4. c3 {[%emt 0:02:30]} Nc6 {[%emt 0:00:14]} 5. Be3 {[%emt 0:02:35]} Nh6 {[%emt 0:00:19]} 6. Nf3 {[%emt 0:03:00]} Nf5 {[%emt 0:00:26]} 7. Bb5 {[%emt 0:01:47]} Nxe3 {[%emt 0:03:15]} 8. fxe3 {[%emt 0:00:22]} e6 {[%emt 0:00:53]} 9. O-O {[%emt 0:01:37]} Bd7 {[%emt 0:00:44]} 10. Nbd2 {[%emt 0:01:20]} Be7 {[%emt 0:06:39]} 11. Ba4 {[%emt 0:01:23]} O-O {[%emt 0:01:08]} 12. Bc2 {[%emt 0:00:43]} Qb6 {[%emt 0:01:05]} 13. Rb1 {[%emt 0:02:07]} f5 {[%emt 0:02:12]} 14. Nb3 {[%emt 0:03:12]} c4 {[%emt 0:01:23]} 15. Nc1 {[%emt 0:00:17]} Qd8 {[%emt 0:03:32]} 16. Ne2 {[%emt 0:00:50]} g5 {[%emt 0:01:25]} 17. Kh1 {[%emt 0:05:53]} Be8 {[%emt 0:02:52]} 18. Qe1 {[%emt 0:01:44]} Bg6 {[%emt 0:01:38]} 19. Nfg1 {[%emt 0:02:55]} b5 {[%emt 0:04:23]} 20. a4 {[%emt 0:08:49]} a6 {[%emt 0:00:08]} 21. Ra1 {[%emt 0:00:28]} b4 {[%emt 0:01:05]} 22. g4 {[%emt 0:02:28]} fxg4 {[%emt 0:02:40]} 23. Bxg6 {[%emt 0:00:15]} hxg6 {[%emt 0:00:06]} 24. Qg3 {[%emt 0:00:45]} Qd7 {[%emt 0:03:20]} 25. Qxg4 {[%emt 0:00:31]} b3 {[%emt 0:00:48]} 26. Nf3 {[%emt 0:00:31]} Rae8 {[%emt 0:03:36]} 27. Rg1 {[%emt 0:01:02]} Kg7 {[%emt 0:02:08]} 28. Nxg5 {[%emt 0:00:19]} Rf5 {[%emt 0:02:58]} 29. Nh7 {[%emt 0:01:02]} g5 {[%emt 0:00:32]} 30. Nf6 {[%emt 0:01:37]} Bxf6 {[%emt 0:00:15]} 31. exf6+ {[%emt 0:00:14]} Kxf6 {[%emt 0:01:08]} 32. Ng3 {[%emt 0:00:19]} Rg8 {[%emt 0:02:11]} 33. Nxf5 {[%emt 0:01:17]} exf5 {[%emt 0:00:05]} 34. Raf1 {[%emt 0:00:30]} Ne7 {[%emt 0:00:10]} 35. h4 {[%emt 0:03:09]} Rg7 {[%emt 0:03:00]} 36. hxg5+ {[%emt 0:04:35]} Kg6 {[%emt 0:00:11]} 37. Qf4 {[%emt 0:00:29]} Qe6 {[%emt 0:00:46]} 38. Rg3 {[%emt 0:01:11]} Qe4+ {[%emt 0:02:09]} 39. Qxe4 {[%emt 0:01:34]} dxe4 {[%emt 0:00:10]} 40. Kg2 {[%emt 0:00:53]} Rh7 {[%emt 0:00:55]} 41. Rh1 {[%emt 0:30:53]} Rxh1 {[%emt 0:31:09]} 42. Kxh1 {[%emt 0:00:13]} a5 {[%emt 0:00:03]} 43. Kh2 {[%emt 0:00:19]} Nd5 {[%emt 0:00:06]} 44. Kh3 {[%emt 0:02:57]} Nb6 {[%emt 0:02:14]} 45. Kh4 {[%emt 0:02:40]} Nd5 {[%emt 0:01:46]} 46. Rh3 {[%emt 0:01:06]} Kg7 {[%emt 0:06:40]} 47. Kh5 {[%emt 0:09:49]} f4 {[%emt 0:01:13]} 48. Kg4 {[%emt 0:00:27]} f3 {[%emt 0:00:29]} 49. Kf5 {[%emt 0:01:20]} f2 {[%emt 0:00:43]} 50. Rh1 {[%emt 0:00:08]} f1=Q+ 51. Rxf1 {[%emt 0:00:13]} Nxe3+ {[%emt 0:01:11]} 52. Kxe4 {[%emt 0:00:10]} Nxf1 {[%emt 0:00:05]} 53. d5 {[%emt 0:00:51]} Nd2+ {[%emt 0:03:52]} 54. Kd4 {[%emt 0:00:26]} Nf3+ {[%emt 0:00:42]} 55. Kxc4 {[%emt 0:00:11]} Nxg5 {[%emt 0:00:04]} 56. Kxb3 {[%emt 0:00:26]} Kf6 {[%emt 0:00:22]} 57. Kc4 {[%emt 0:02:17]} Ke5 {[%emt 0:00:59]} 58. Kb5 {[%emt 0:02:09]} Kxd5 {[%emt 0:00:08]} 59. Kxa5 {[%emt 0:01:37]} Ne4 {[%emt 0:02:00]} 60. Kb6 {[%emt 0:00:31]} Nd6 {[%emt 0:01:57]} 61. b3 {[%emt 0:00:51]} Nc8+ {[%emt 0:01:06]} 62. Kc7 {[%emt 0:00:23]} Nd6 {[%emt 0:02:33]} 63. c4+ {[%emt 0:02:58]} Kc5 {[%emt 0:00:59]} 64. a5 {[%emt 0:01:21]} Nb5+ {[%emt 0:04:15]} 65. cxb5 {[%emt 0:00:19]} Kxb5 {[%emt 0:00:02]} 66. b4 1-0

[Event "WSTCC-65 2024"]
[Site "Krakow"]
[Date "2024.07.06"]
[Round "5.5"]
[White "Pigott, John C"]
[Black "Mikhalevski, Alexander"]
[Result "1/2-1/2"]
[ECO "A13"]
[WhiteElo "2290"]
[BlackElo "2393"]
[Annotator "TA"]
[PlyCount "44"]
[EventDate "2024.07.01"]
[EventType "team-tourn"]
[EventCountry "POL"]
[SourceTitle "playchess.com"]
[Source "ChessBase"]
[SourceQuality "1"]
[TimeControl "40/5400+30:1800+30"]

{[%evp 14,44,22,29,56,36,58,54,71,46,70,27,26,13,76,76,97,14,21,23,17,10,16,20,13,14,16,14,17,12,24,16,14]} 1. c4 {[%emt 0:00:18]} e6 {[%emt 0:00:04]} 2. g3 {[%emt 0:00:16]} d5 {[%emt 0:00:06]} 3. Bg2 {[%emt 0:00:22]} dxc4 {[%emt 0:00:06]} 4. Qa4+ {[%emt 0:00:35]} Nd7 {[%emt 0:00:09]} 5. Qxc4 {[%emt 0:00:12]} a6 {[%emt 0:00:07]} 6. Qc2 {[%emt 0:00:32]} Ngf6 {[%emt 0:01:17]} 7. Nf3 {[%emt 0:01:05]} c5 {[%emt 0:01:18]} 8. Nc3 {[%emt 0:01:20]} Bd6 {[%emt 0:04:09]} 9. O-O {[%emt 0:01:32]} Qc7 {[%emt 0:02:37]} 10. d4 {[%emt 0:02:34]} b5 {[%emt 0:08:59] White is slightly better.} 11. dxc5 {[%emt 0:26:06]} Nxc5 {[%emt 0:01:31]} 12. Bg5 {[%emt 0:14:02] [#] Rac1 is the strong threat.} Bb7 {[%emt 0:14:43]} 13. Rac1 {[%emt 0:01:32] Threatens to win with Bxf6.} Rc8 {[%emt 0:11:37]} (13... O-O $11) 14. Qd2 $16 {[%emt 0:06:16] aiming for b4.} Qb8 {[%emt 0:01:21] [#]} 15. Rfd1 {[%emt 0:03:58]} (15. Bxf6 $1 $16 gxf6 16. Rfd1) 15... Nce4 $11 {[%emt 0:07:32]} 16. Nxe4 {[%emt 0:00:40]} Nxe4 {[%emt 0:00:12]} 17. Rxc8+ {[%emt 0:09:47]} Qxc8 {[%emt 0:00:19]} 18. Qd3 {[%emt 0:00:20][%cal Of3e5] Ne5! would now be deadly.} O-O {[%emt 0:10:00]} 19. Ne1 {[%emt 0:00:39]} Nxg5 {[%emt 0:00:12]} 20. Qxd6 {[%emt 0:00:08]} Bxg2 {[%emt 0:00:08]} 21. Kxg2 {[%emt 0:00:09]} Ne4 {[%emt 0:00:32]} 22. Qd7 {[%emt 0:02:26]} Qa8 {[%emt 0:03:18] Weighted Error Value: White=0.14 (very precise) /Black=0.15 (very precise) .  Mistake:       	White=1     	Black=1      Inaccurate:     	White=1     	---        OK:         	White=7     	Black=6      Best:        	White=1     	Black=1} 1/2-1/2

[Event "WSTCC-65 2024"]
[Site "Krakow"]
[Date "2024.07.06"]
[Round "5.5"]
[White "Kyas, Juergen"]
[Black "Renman, Nils-Gustaf"]
[Result "1/2-1/2"]
[ECO "C09"]
[WhiteElo "2173"]
[BlackElo "2314"]
[Annotator "TA"]
[PlyCount "139"]
[EventDate "2024.07.01"]
[EventType "team-tourn"]
[EventCountry "POL"]
[SourceTitle "playchess.com"]
[Source "ChessBase"]
[SourceQuality "1"]
[TimeControl "40/5400+30:1800+30"]

{[%evp 14,139,28,23,21,25,18,12,23,20,35,27,18,29,28,24,27,28,31,23,28,0,34,22,20,0,0,0,0,4,7,0,0,0,0,0,0,0,27,20,25,0,29,0,8,-8,-13,-51,-51,-65,-57,-88,-80,-73,-76,-73,-77,-84,-49,-66,-49,-45,0,0,355,0,0,0,0,0,0,0,0,0,0,0,0,0,0,0,0,0,0,0,0,0,0,0,0,0,0,0,0,0,0,0,0,0,0,0,0,0,0,0,0,0,0,0,0,-80,0,0,0,0,0,0,0,0,0,0,0,0,0,0,0,0,0,-8]} 1. e4 {[%emt 0:00:04]} e6 {[%emt 0:00:11]} 2. d4 {[%emt 0:00:03]} d5 {[%emt 0:00:05]} 3. Nd2 {[%emt 0:00:10]} c5 {[%emt 0:00:13]} 4. Ngf3 {[%emt 0:00:07]} Nc6 {[%emt 0:00:11]} 5. exd5 {[%emt 0:00:16]} exd5 {[%emt 0:00:08]} 6. Bb5 {[%emt 0:00:19]} Qe7+ {[%emt 0:00:20]} 7. Be2 {[%emt 0:00:07]} Qc7 {[%emt 0:00:04]} 8. O-O {[%emt 0:00:38]} Nf6 {[%emt 0:00:14]} 9. Re1 {[%emt 0:01:05]} cxd4 {[%emt 0:00:11]} 10. Nb3 {[%emt 0:00:06]} Bb4 {[%emt 0:00:09]} 11. Bd2 {[%emt 0:00:05]} Bxd2 {[%emt 0:00:16]} 12. Qxd2 {[%emt 0:00:03]} O-O {[%emt 0:00:11]} 13. Nfxd4 {[%emt 0:00:12]} Bd7 {[%emt 0:00:51]} 14. Bd3 {[%emt 0:11:32]} Rfe8 {[%emt 0:09:18]} 15. h3 {[%emt 0:09:41]} Ne5 {[%emt 0:11:55]} 16. Qf4 {[%emt 0:00:07]} Nh5 {[%emt 0:05:12]} 17. Qd2 {[%emt 0:04:19]} Nc4 {[%emt 0:04:45]} 18. Qc3 {[%emt 0:04:45]} Nf4 {[%emt 0:09:56]} (18... Rac8 {mit weiteren Verwicklungen.} 19. Rad1 Nf4 20. Nf5 Ne5) 19. Bxc4 {[%emt 0:04:25]} (19. Ne2 {sieht schärfer aus.} b5 20. Rad1 h6 21. Nbd4) 19... dxc4 {[%emt 0:01:00]} 20. Nd2 {[%emt 0:00:31]} b5 {[%emt 0:11:30]} 21. Qg3 {[%emt 0:09:12]} Qd6 {[%emt 0:01:00]} 22. N2f3 {[%emt 0:05:45]} h6 {[%emt 0:04:25]} 23. Kh2 {[%emt 0:09:42]} Qf6 {[%emt 0:00:28]} 24. Re3 {[%emt 0:05:09]} Rxe3 {[%emt 0:19:31]} 25. fxe3 {[%emt 0:00:02]} Nd5 {[%emt 0:01:55]} 26. e4 {[%emt 0:04:43]} Nb6 {[%emt 0:00:01]} 27. Rf1 {[%emt 0:07:20]} Rc8 {[%emt 0:01:29]} 28. c3 {[%emt 0:01:37]} Re8 {[%emt 0:04:48]} 29. Re1 {[%emt 0:11:27]} Na4 {[%emt 0:00:39]} 30. Qc7 {[%emt 0:01:14]} Qd8 {[%emt 0:00:37]} 31. Qxa7 {[%emt 0:01:06]} Nxb2 {[%emt 0:00:13]} 32. Rb1 {[%emt 0:02:45] [#]} Na4 $1 {[%emt 0:00:42]} 33. Nxb5 {[%emt 0:00:29]} Bxb5 {[%emt 0:04:56]} 34. Rxb5 {[%emt 0:00:02]} Nxc3 {[%emt 0:00:08]} 35. Rb7 {[%emt 0:00:57]} Nxe4 {[%emt 0:02:05]} 36. Rxf7 {[%emt 0:00:59]} Qd6+ {[%emt 0:00:20]} 37. Kg1 {[%emt 0:01:10]} Ng5 {[%emt 0:02:33]} (37... Qg6 {vereinfacht} 38. Re7 c3 39. Rxe8+ Qxe8 40. Qb7 Kh8) 38. Nxg5 {[%emt 0:01:34]} Qd1+ $2 {[%emt 0:01:11][%mdl 8192]} (38... Re1+ $11 {und Schwarz steht sicher.} 39. Rf1 Rxf1+ 40. Kxf1 Qd3+ (40... hxg5 41. Qa8+ Kh7 42. Qe4+ g6 43. Qxc4 $14) 41. Kf2 hxg5) 39. Kh2 $2 {[%emt 0:01:03]} (39. Rf1 $18 {Beabsichtigt Qf7+ und Matt.} Qd5 40. Nf3) 39... Qd6+ $11 {[%emt 0:00:16]} ({Und nicht} 39... hxg5 40. Rxg7+ Kh8 41. Rh7+ Kg8 42. Qg7#) 40. Kg1 {[%emt 0:00:04]} Re1+ {[%emt 0:00:18]} ({Schwächer ist} 40... hxg5 41. Rxg7+ Kh8 42. Rh7+ Kg8 43. Qg7#) 41. Rf1 {[%emt 0:06:58]} Rxf1+ {[%emt 0:00:10]} 42. Kxf1 {[%emt 0:00:02]} Qd3+ {[%emt 0:01:29]} 43. Kf2 {[%emt 0:00:01]} hxg5 {[%emt 0:00:12]} 44. Qe7 {[%emt 0:08:06]} Qf5+ {[%emt 0:02:12]} 45. Ke2 {[%emt 0:00:43]} Qc2+ {[%emt 0:01:22]} 46. Ke1 {[%emt 0:01:11]} Qb1+ {[%emt 0:00:20]} 47. Kd2 {[%emt 0:03:01]} Qxa2+ {[%emt 0:00:47]} 48. Kc1 {[%emt 0:02:12]} Qa1+ {[%emt 0:01:33]} 49. Kc2 {[%emt 0:00:10]} Qa4+ {[%emt 0:00:08]} 50. Kd2 {[%emt 0:01:18]} Qb5 {[%emt 0:04:46]} 51. Kc2 {[%emt 0:03:44]} Qb3+ {[%emt 0:01:10]} 52. Kc1 {[%emt 0:01:04]} Qc3+ {[%emt 0:00:08]} 53. Kd1 {[%emt 0:00:19]} Qd4+ {[%emt 0:07:28]} 54. Ke2 {[%emt 0:01:08]} Qb2+ {[%emt 0:06:50]} 55. Ke3 {[%emt 0:01:49]} Qb6+ {[%emt 0:00:41]} 56. Kd2 {[%emt 0:00:50]} Qa5+ {[%emt 0:02:29]} 57. Kc2 {[%emt 0:00:50]} Qf5+ {[%emt 0:01:48]} 58. Kb2 {[%emt 0:01:06]} Kh7 {[%emt 0:00:34]} 59. Qe8 {[%emt 0:01:00]} Qf6+ {[%emt 0:03:48]} 60. Ka3 {[%emt 0:02:03]} Qg6 {[%emt 0:03:26]} 61. Qe3 {[%emt 0:01:29] [#]} (61. Qxg6+ $11 {bleibt in der Remisbreite.} Kxg6 62. Kb4) 61... Qd6+ {[%emt 0:00:51]} (61... Qa6+ $1 $17 62. Kb4 Qb7+ 63. Kxc4 Qxg2) 62. Kb2 $11 {[%emt 0:00:49]} Qd5 {[%emt 0:00:26]} 63. Qe2 {[%emt 0:01:03]} Qb5+ {[%emt 0:01:55]} 64. Kc3 {[%emt 0:01:02]} Qb3+ {[%emt 0:01:03]} 65. Kd4 {[%emt 0:00:07]} Qb6+ {[%emt 0:00:03]} 66. Kc3 {[%emt 0:00:12]} Qa5+ {[%emt 0:00:17]} 67. Kd4 {[%emt 0:00:11]} Qa1+ {[%emt 0:00:20]} 68. Kc5 {[%emt 0:00:24]} Qa7+ {[%emt 0:01:15]} 69. Kb4 {[%emt 0:00:11]} Qb6+ {[%emt 0:00:27]} 70. Kc3 {[%emt 0:00:09]} 1/2-1/2